[Event "Titled Tuesday Blitz February 15 Early 2022"]
[White "Eynullayev, Altay"]
[Black "Allahverdiyeva, Ayan"]
[WhiteFideId "13413562"]
[BlackFideId "13412590"]
[WhiteElo "2079"]
[BlackElo "1910"]
[Result "0-1"]
[Round "02"]
[TimeControl "180+1"]
[Date "2022.02.15"]
[WhiteClock "0:00:15"]
[BlackClock "0:00:15"]

1. e4 {[%clk 0:03:00]}  c5 {[%clk 0:02:56]} 2. Nf3 {[%clk 0:03:01]}  d6 {[%clk 0:02:55]} 3. d4 {[%clk 0:03:01]}  cxd4 {[%clk 0:02:55]} 4. Nxd4 {[%clk 0:03:02]}  Nf6 {[%clk 0:02:56]} 5. Nc3 {[%clk 0:03:02]}  a6 {[%clk 0:02:56]} 6. Be2 {[%clk 0:03:02]}  e6 {[%clk 0:02:55]} 7. Be3 {[%clk 0:03:01]}  Be7 {[%clk 0:02:55]} 8. g4 {[%clk 0:03:01]}  Nfd7 {[%clk 0:02:47]} 9. h4 {[%clk 0:03:01]}  b5 {[%clk 0:02:46]} 10. a3 {[%clk 0:02:59]}  Bb7 {[%clk 0:02:45]} 11. g5 {[%clk 0:02:55]}  Nc6 {[%clk 0:02:38]} 12. Nxc6 {[%clk 0:02:54]}  Bxc6 {[%clk 0:02:38]} 13. Qd4 {[%clk 0:02:54]}  O-O {[%clk 0:02:25]} 14. O-O-O {[%clk 0:02:54]}  Rb8 {[%clk 0:02:20]} 15. Rhg1 {[%clk 0:02:26]}  a5 {[%clk 0:02:13]} 16. b4 {[%clk 0:01:48]}  axb4 {[%clk 0:02:09]} 17. axb4 {[%clk 0:01:49]}  Ra8 {[%clk 0:01:58]} 18. h5 {[%clk 0:01:46]}  e5 {[%clk 0:01:52]} 19. Qd2 {[%clk 0:01:31]}  d5 {[%clk 0:01:49]} 20. Nxd5 {[%clk 0:01:28]}  Bxd5 {[%clk 0:01:42]} 21. exd5 {[%clk 0:01:28]}  Ra2 {[%clk 0:01:38]} 22. d6 {[%clk 0:00:52]}  Qa8 {[%clk 0:01:37]} 23. Qd3 {[%clk 0:00:51]}  Bd8 {[%clk 0:01:04]} 24. g6 {[%clk 0:00:51]}  Nb6 {[%clk 0:00:55]} 25. gxf7+ {[%clk 0:00:47]}  Rxf7 {[%clk 0:00:52]} 26. Qb3 {[%clk 0:00:41]}  Ra3 {[%clk 0:00:33]} 27. Rxg7+ {[%clk 0:00:38]}  Kxg7 {[%clk 0:00:30]} 28. Rg1+ {[%clk 0:00:39]}  Bg5 {[%clk 0:00:19]} 29. Qb2 {[%clk 0:00:20]}  Ra1+ {[%clk 0:00:18]} 30. Kd2 {[%clk 0:00:20]}  Qd5+ {[%clk 0:00:18]} 31. Bd3 {[%clk 0:00:19]}  Nc4+ {[%clk 0:00:18]} 32. Ke2 {[%clk 0:00:17]}  Nxb2 {[%clk 0:00:18]} 33. Rxg5+ {[%clk 0:00:18]}  Kf8 {[%clk 0:00:18]} 34. Rg3 {[%clk 0:00:15]}  Nxd3 {[%clk 0:00:17]} 35. Bh6+ {[%clk 0:00:14]}  Ke8 {[%clk 0:00:17]} 36. Rxd3 {[%clk 0:00:14]}  Qe4+ {[%clk 0:00:17]} 37. Be3 {[%clk 0:00:14]}  Qg4+ {[%clk 0:00:15]} 38. Kd2 {[%clk 0:00:14]}  Rd1+ {[%clk 0:00:15]} 39. Kc3 {[%clk 0:00:15]}  Qc4+ {[%clk 0:00:15]} 40. Kb2 {[%clk 0:00:15]}  Rxd3 {[%clk 0:00:14]} 41. cxd3 {[%clk 0:00:15]}  Qxd3 {[%clk 0:00:15]} 0-1


[Site "https://www.chess.com"]

[Event "Titled Tuesday Blitz February 15 Early 2022"]
[White "Eynullayev, Atilla"]
[Black "Necula, Iulian"]
[WhiteFideId "13413570"]
[BlackFideId "1232380"]
[WhiteElo "1979"]
[BlackElo "1776"]
[Result "1-0"]
[Round "02"]
[TimeControl "180+1"]
[Date "2022.02.15"]
[WhiteClock "0:00:48"]
[BlackClock "0:00:01"]

1. Nf3 {[%clk 0:03:00]}  d6 {[%clk 0:02:59]} 2. g3 {[%clk 0:02:59]}  f5 {[%clk 0:02:58]} 3. Bg2 {[%clk 0:03:00]}  Nf6 {[%clk 0:02:58]} 4. O-O {[%clk 0:03:00]}  g6 {[%clk 0:02:59]} 5. b3 {[%clk 0:03:00]}  Bg7 {[%clk 0:02:59]} 6. Bb2 {[%clk 0:03:01]}  O-O {[%clk 0:02:59]} 7. c4 {[%clk 0:03:00]}  e5 {[%clk 0:02:59]} 8. d3 {[%clk 0:02:58]}  c6 {[%clk 0:02:59]} 9. Nbd2 {[%clk 0:02:57]}  h6 {[%clk 0:02:59]} 10. b4 {[%clk 0:02:53]}  a6 {[%clk 0:02:58]} 11. a4 {[%clk 0:02:53]}  Be6 {[%clk 0:02:48]} 12. Qc2 {[%clk 0:02:35]}  Nbd7 {[%clk 0:02:47]} 13. Rfc1 {[%clk 0:01:56]}  Rc8 {[%clk 0:02:45]} 14. Qb1 {[%clk 0:01:55]}  Qe7 {[%clk 0:02:37]} 15. Bc3 {[%clk 0:01:55]}  Rfe8 {[%clk 0:02:22]} 16. b5 {[%clk 0:01:50]}  Rb8 {[%clk 0:01:56]} 17. Rc2 {[%clk 0:01:23]}  d5 {[%clk 0:01:46]} 18. Nxe5 {[%clk 0:01:17]}  Nxe5 {[%clk 0:01:45]} 19. Bxe5 {[%clk 0:01:18]}  Rbc8 {[%clk 0:01:38]} 20. bxa6 {[%clk 0:01:18]}  bxa6 {[%clk 0:01:37]} 21. Qb2 {[%clk 0:01:19]}  dxc4 {[%clk 0:01:28]} 22. Nxc4 {[%clk 0:01:18]}  Bxc4 {[%clk 0:01:09]} 23. Bd4 {[%clk 0:00:55]}  Bd5 {[%clk 0:00:48]} 24. Bf1 {[%clk 0:00:54]}  Ng4 {[%clk 0:00:34]} 25. Rac1 {[%clk 0:00:49]}  Bxd4 {[%clk 0:00:23]} 26. Qxd4 {[%clk 0:00:50]}  Qe5 {[%clk 0:00:21]} 27. Qxe5 {[%clk 0:00:47]}  Nxe5 {[%clk 0:00:11]} 28. Bg2 {[%clk 0:00:47]}  Bxg2 {[%clk 0:00:09]} 29. Kxg2 {[%clk 0:00:48]}  Kg7 {[%clk 0:00:01]} 30. Rc5 {[%clk 0:00:48]} 1-0


[Site "https://www.chess.com"]

[Event "Titled Tuesday Blitz February 15 Early 2022"]
[White "Ezat, Mohamed"]
[Black "Sahil, Tickoo"]
[WhiteFideId "10600906"]
[BlackFideId "5019710"]
[WhiteElo "2386"]
[BlackElo "2099"]
[Result "1-0"]
[Round "02"]
[TimeControl "180+1"]
[Date "2022.02.15"]
[WhiteClock "0:01:13"]
[BlackClock "0:00:01"]

1. d4 {[%clk 0:03:00]}  d5 {[%clk 0:02:59]} 2. c4 {[%clk 0:03:00]}  e6 {[%clk 0:02:58]} 3. Nc3 {[%clk 0:03:00]}  c6 {[%clk 0:02:56]} 4. e4 {[%clk 0:02:59]}  dxe4 {[%clk 0:02:47]} 5. Nxe4 {[%clk 0:02:57]}  Nf6 {[%clk 0:02:38]} 6. Nxf6+ {[%clk 0:02:55]}  Qxf6 {[%clk 0:02:35]} 7. Nf3 {[%clk 0:02:56]}  Bb4+ {[%clk 0:02:35]} 8. Bd2 {[%clk 0:02:57]}  Bxd2+ {[%clk 0:02:32]} 9. Qxd2 {[%clk 0:02:57]}  O-O {[%clk 0:02:30]} 10. Bd3 {[%clk 0:02:57]}  b6 {[%clk 0:02:25]} 11. O-O-O {[%clk 0:02:55]}  Bb7 {[%clk 0:02:25]} 12. Ng5 {[%clk 0:02:49]}  g6 {[%clk 0:02:08]} 13. h4 {[%clk 0:02:47]}  h6 {[%clk 0:01:55]} 14. Ne4 {[%clk 0:02:43]}  Qg7 {[%clk 0:01:19]} 15. h5 {[%clk 0:02:35]}  g5 {[%clk 0:01:18]} 16. f4 {[%clk 0:02:35]}  f6 {[%clk 0:01:01]} 17. fxg5 {[%clk 0:02:31]}  hxg5 {[%clk 0:01:01]} 18. h6 {[%clk 0:02:30]}  Qe7 {[%clk 0:00:56]} 19. Rdf1 {[%clk 0:02:15]}  Nd7 {[%clk 0:00:47]} 20. Rh5 {[%clk 0:01:50]}  Kh8 {[%clk 0:00:42]} 21. h7 {[%clk 0:01:46]}  c5 {[%clk 0:00:37]} 22. Rh6 {[%clk 0:01:44]}  Bxe4 {[%clk 0:00:20]} 23. Bxe4 {[%clk 0:01:43]}  e5 {[%clk 0:00:18]} 24. Bxa8 {[%clk 0:01:41]}  Rxa8 {[%clk 0:00:16]} 25. dxe5 {[%clk 0:01:41]}  Nxe5 {[%clk 0:00:13]} 26. Rhxf6 {[%clk 0:01:39]}  Rd8 {[%clk 0:00:06]} 27. Qxg5 {[%clk 0:01:16]}  Nd3+ {[%clk 0:00:03]} 28. Kb1 {[%clk 0:01:16]}  Qe4 {[%clk 0:00:01]} 29. Rf8+ {[%clk 0:01:13]} 1-0


[Site "https://www.chess.com"]

[Event "Titled Tuesday Blitz February 15 Early 2022"]
[White "Fajdetic, Hrvoje"]
[Black "Nilsen, Tobias Lang"]
[WhiteFideId "14501945"]
[BlackFideId "1521624"]
[WhiteElo "2140"]
[BlackElo "2013"]
[Result "1-0"]
[Round "02"]
[TimeControl "180+1"]
[Date "2022.02.15"]
[WhiteClock "0:00:04"]
[BlackClock "0:00:15"]

1. d4 {[%clk 0:02:57]}  f5 {[%clk 0:02:57]} 2. Bg5 {[%clk 0:02:57]}  d5 {[%clk 0:02:55]} 3. e3 {[%clk 0:02:46]}  c6 {[%clk 0:02:54]} 4. c4 {[%clk 0:02:46]}  Nd7 {[%clk 0:02:44]} 5. Qh5+ {[%clk 0:02:22]}  g6 {[%clk 0:02:39]} 6. Qf3 {[%clk 0:02:12]}  Ngf6 {[%clk 0:02:36]} 7. Nc3 {[%clk 0:02:10]}  e6 {[%clk 0:02:36]} 8. h4 {[%clk 0:02:10]}  h6 {[%clk 0:02:32]} 9. Bf4 {[%clk 0:02:01]}  Ne4 {[%clk 0:02:28]} 10. Nxe4 {[%clk 0:01:52]}  dxe4 {[%clk 0:02:25]} 11. Qg3 {[%clk 0:01:51]}  Bb4+ {[%clk 0:02:21]} 12. Kd1 {[%clk 0:01:51]}  Kf7 {[%clk 0:02:14]} 13. Nh3 {[%clk 0:01:45]}  Be7 {[%clk 0:02:03]} 14. f3 {[%clk 0:01:42]}  c5 {[%clk 0:02:00]} 15. Bc7 {[%clk 0:01:32]}  Qe8 {[%clk 0:01:51]} 16. Nf4 {[%clk 0:01:30]}  Nf8 {[%clk 0:01:47]} 17. d5 {[%clk 0:01:22]}  Bf6 {[%clk 0:01:08]} 18. fxe4 {[%clk 0:01:14]}  fxe4 {[%clk 0:00:40]} 19. Be2 {[%clk 0:01:12]}  Qa4+ {[%clk 0:00:39]} 20. Ke1 {[%clk 0:00:59]}  Bxb2 {[%clk 0:00:39]} 21. Rb1 {[%clk 0:00:08]}  Bc3+ {[%clk 0:00:39]} 22. Kf2 {[%clk 0:00:08]}  Rg8 {[%clk 0:00:35]} 23. Rhf1 {[%clk 0:00:07]}  Ke8 {[%clk 0:00:30]} 24. dxe6 {[%clk 0:00:05]}  Nxe6 {[%clk 0:00:27]} 25. Nxe6 {[%clk 0:00:05]}  Bxe6 {[%clk 0:00:27]} 26. Be5 {[%clk 0:00:05]}  Qc6 {[%clk 0:00:19]} 27. Kg1 {[%clk 0:00:04]}  Bxe5 {[%clk 0:00:18]} 28. Qxe5 {[%clk 0:00:05]}  Kd7 {[%clk 0:00:16]} 29. Rfd1+ {[%clk 0:00:05]}  Kc8 {[%clk 0:00:16]} 30. Rd6 {[%clk 0:00:05]}  Qc7 {[%clk 0:00:15]} 31. Qxe6+ {[%clk 0:00:05]}  Kb8 {[%clk 0:00:15]} 32. Rd7 {[%clk 0:00:05]}  Qc8 {[%clk 0:00:15]} 33. Qd6+ {[%clk 0:00:04]} 1-0


[Site "https://www.chess.com"]

[Event "Titled Tuesday Blitz February 15 Early 2022"]
[White "Fiorito, Fabian"]
[Black "Deepan Chakkravarthy J."]
[WhiteFideId "100200"]
[BlackFideId "5011132"]
[WhiteElo "2395"]
[BlackElo "2490"]
[Result "1/2-1/2"]
[Round "02"]
[TimeControl "180+1"]
[Date "2022.02.15"]
[WhiteClock "0:00:29"]
[BlackClock "0:00:23"]

1. d4 {[%clk 0:03:00]}  d5 {[%clk 0:02:59]} 2. Nc3 {[%clk 0:03:01]}  Bf5 {[%clk 0:02:57]} 3. Bf4 {[%clk 0:03:01]}  Nd7 {[%clk 0:02:56]} 4. Nxd5 {[%clk 0:02:46]}  Rc8 {[%clk 0:02:55]} 5. Nc3 {[%clk 0:02:45]}  Ngf6 {[%clk 0:02:53]} 6. f3 {[%clk 0:02:45]}  e6 {[%clk 0:02:52]} 7. e4 {[%clk 0:02:45]}  Bg6 {[%clk 0:02:52]} 8. a3 {[%clk 0:02:41]}  a6 {[%clk 0:02:52]} 9. Qd2 {[%clk 0:02:40]}  c5 {[%clk 0:02:51]} 10. d5 {[%clk 0:02:38]}  e5 {[%clk 0:02:46]} 11. Bg5 {[%clk 0:02:37]}  Bd6 {[%clk 0:02:44]} 12. a4 {[%clk 0:02:33]}  O-O {[%clk 0:02:39]} 13. g4 {[%clk 0:02:32]}  h6 {[%clk 0:02:37]} 14. Be3 {[%clk 0:02:31]}  c4 {[%clk 0:02:34]} 15. h4 {[%clk 0:02:29]}  Qa5 {[%clk 0:02:33]} 16. h5 {[%clk 0:02:11]}  Bh7 {[%clk 0:02:29]} 17. g5 {[%clk 0:02:10]}  hxg5 {[%clk 0:02:28]} 18. Bxg5 {[%clk 0:02:11]}  Bb4 {[%clk 0:02:27]} 19. Nge2 {[%clk 0:02:09]}  Ne8 {[%clk 0:02:15]} 20. Bh3 {[%clk 0:02:06]}  f5 {[%clk 0:02:08]} 21. Rg1 {[%clk 0:02:03]}  Kh8 {[%clk 0:01:59]} 22. Bh4 {[%clk 0:01:39]}  Qb6 {[%clk 0:01:40]} 23. O-O-O {[%clk 0:01:21]}  Nc5 {[%clk 0:01:36]} 24. d6 {[%clk 0:01:15]}  Nd7 {[%clk 0:01:15]} 25. Kb1 {[%clk 0:01:12]}  Qa5 {[%clk 0:01:00]} 26. Be7 {[%clk 0:01:10]}  Rf7 {[%clk 0:00:58]} 27. Qd5 {[%clk 0:01:10]}  Qxd5 {[%clk 0:00:51]} 28. Rxd5 {[%clk 0:01:11]}  Rc6 {[%clk 0:00:46]} 29. Rgd1 {[%clk 0:01:04]}  Nef6 {[%clk 0:00:45]} 30. Bxf6 {[%clk 0:01:03]}  Rxf6 {[%clk 0:00:45]} 31. exf5 {[%clk 0:01:03]}  Rfxd6 {[%clk 0:00:38]} 32. Ne4 {[%clk 0:00:59]}  Rxd5 {[%clk 0:00:39]} 33. Rxd5 {[%clk 0:01:00]}  Nf6 {[%clk 0:00:32]} 34. Rxe5 {[%clk 0:00:53]}  Nxh5 {[%clk 0:00:26]} 35. Re8+ {[%clk 0:00:53]}  Bg8 {[%clk 0:00:26]} 36. Nd4 {[%clk 0:00:38]}  Rc7 {[%clk 0:00:23]} 37. Ne6 {[%clk 0:00:37]}  Re7 {[%clk 0:00:23]} 38. Rc8 {[%clk 0:00:35]}  b5 {[%clk 0:00:22]} 39. axb5 {[%clk 0:00:35]}  axb5 {[%clk 0:00:22]} 40. Bg4 {[%clk 0:00:33]}  Nf6 {[%clk 0:00:20]} 41. Nxf6 {[%clk 0:00:34]}  gxf6 {[%clk 0:00:20]} 42. Rb8 {[%clk 0:00:35]}  Bd6 {[%clk 0:00:20]} 43. Rxb5 {[%clk 0:00:35]}  Kh7 {[%clk 0:00:19]} 44. Rd5 {[%clk 0:00:34]}  Be5 {[%clk 0:00:19]} 45. f4 {[%clk 0:00:34]}  Bxe6 {[%clk 0:00:18]} 46. fxe6 {[%clk 0:00:35]}  Bxf4 {[%clk 0:00:19]} 47. Rd4 {[%clk 0:00:35]}  Be5 {[%clk 0:00:19]} 48. Rxc4 {[%clk 0:00:35]}  Kg6 {[%clk 0:00:19]} 49. b4 {[%clk 0:00:32]}  f5 {[%clk 0:00:19]} 50. Rc5 {[%clk 0:00:22]}  Kf6 {[%clk 0:00:19]} 51. Be2 {[%clk 0:00:19]}  Rxe6 {[%clk 0:00:19]} 52. b5 {[%clk 0:00:20]}  Bd4 {[%clk 0:00:18]} 53. Rc6 {[%clk 0:00:20]}  Rxc6 {[%clk 0:00:18]} 54. bxc6 {[%clk 0:00:21]}  Be5 {[%clk 0:00:18]} 55. c4 {[%clk 0:00:21]}  Ke7 {[%clk 0:00:18]} 56. Kc2 {[%clk 0:00:22]}  Kd8 {[%clk 0:00:18]} 57. Bf3 {[%clk 0:00:23]}  Kc7 {[%clk 0:00:19]} 58. Kb3 {[%clk 0:00:24]}  Bf4 {[%clk 0:00:19]} 59. Ka4 {[%clk 0:00:25]}  Bg3 {[%clk 0:00:19]} 60. Kb5 {[%clk 0:00:26]}  Bh2 {[%clk 0:00:20]} 61. Kc5 {[%clk 0:00:26]}  Bg1+ {[%clk 0:00:20]} 62. Kd5 {[%clk 0:00:27]}  Bh2 {[%clk 0:00:21]} 63. Ke6 {[%clk 0:00:27]}  Bg1 {[%clk 0:00:22]} 64. Kd5 {[%clk 0:00:28]}  Bh2 {[%clk 0:00:22]} 65. Ke6 {[%clk 0:00:29]}  Bg1 {[%clk 0:00:23]} 66. Kd5 {[%clk 0:00:29]} 1/2-1/2


[Site "https://www.chess.com"]

[Event "Titled Tuesday Blitz February 15 Early 2022"]
[White "Firat, Burak"]
[Black "Garagulya, Konstantin"]
[WhiteFideId "6305881"]
[BlackFideId "4128931"]
[WhiteElo "2419"]
[BlackElo "2329"]
[Result "0-1"]
[Round "02"]
[TimeControl "180+1"]
[Date "2022.02.15"]
[WhiteClock "0:00:42"]
[BlackClock "0:00:11"]

1. Nf3 {[%clk 0:03:00]}  Nf6 {[%clk 0:02:56]} 2. c4 {[%clk 0:03:01]}  e6 {[%clk 0:02:56]} 3. Nc3 {[%clk 0:03:01]}  d5 {[%clk 0:02:56]} 4. d4 {[%clk 0:03:01]}  Be7 {[%clk 0:02:56]} 5. g3 {[%clk 0:02:58]}  Nbd7 {[%clk 0:02:51]} 6. Bg2 {[%clk 0:02:55]}  dxc4 {[%clk 0:02:52]} 7. O-O {[%clk 0:02:52]}  a6 {[%clk 0:02:51]} 8. a4 {[%clk 0:02:49]}  Rb8 {[%clk 0:02:48]} 9. a5 {[%clk 0:02:35]}  b5 {[%clk 0:02:45]} 10. axb6 {[%clk 0:02:35]}  cxb6 {[%clk 0:02:44]} 11. Bf4 {[%clk 0:02:27]}  b5 {[%clk 0:02:21]} 12. Bxb8 {[%clk 0:02:25]}  Nxb8 {[%clk 0:02:22]} 13. e4 {[%clk 0:02:15]}  Bb7 {[%clk 0:02:21]} 14. d5 {[%clk 0:02:01]}  exd5 {[%clk 0:02:19]} 15. e5 {[%clk 0:01:52]}  Ne4 {[%clk 0:02:05]} 16. Nd4 {[%clk 0:01:38]}  O-O {[%clk 0:01:45]} 17. Nf5 {[%clk 0:01:26]}  Bc5 {[%clk 0:01:22]} 18. Nxe4 {[%clk 0:01:17]}  dxe4 {[%clk 0:01:21]} 19. Qg4 {[%clk 0:01:17]}  g6 {[%clk 0:01:21]} 20. Rad1 {[%clk 0:01:17]}  Qc8 {[%clk 0:00:55]} 21. Nd6 {[%clk 0:01:03]}  Qxg4 {[%clk 0:00:53]} 22. Nxb7 {[%clk 0:01:03]}  Be7 {[%clk 0:00:29]} 23. Nd6 {[%clk 0:01:02]}  Bxd6 {[%clk 0:00:23]} 24. Rxd6 {[%clk 0:01:02]}  Nd7 {[%clk 0:00:17]} 25. e6 {[%clk 0:01:01]}  Nf6 {[%clk 0:00:13]} 26. exf7+ {[%clk 0:01:00]}  Kxf7 {[%clk 0:00:12]} 27. Rxa6 {[%clk 0:01:01]}  Re8 {[%clk 0:00:11]} 28. Re1 {[%clk 0:01:00]}  Re7 {[%clk 0:00:11]} 29. Rb6 {[%clk 0:00:59]}  Qf5 {[%clk 0:00:11]} 30. h3 {[%clk 0:00:58]}  h5 {[%clk 0:00:11]} 31. Ra6 {[%clk 0:00:57]}  Qc5 {[%clk 0:00:12]} 32. Rf1 {[%clk 0:00:51]}  b4 {[%clk 0:00:11]} 33. Kh2 {[%clk 0:00:47]}  c3 {[%clk 0:00:12]} 34. bxc3 {[%clk 0:00:46]}  bxc3 {[%clk 0:00:12]} 35. Ra2 {[%clk 0:00:46]}  Rc7 {[%clk 0:00:11]} 36. Rc1 {[%clk 0:00:45]}  e3 {[%clk 0:00:10]} 37. fxe3 {[%clk 0:00:44]}  Qxe3 {[%clk 0:00:11]} 38. Rac2 {[%clk 0:00:44]}  Kg7 {[%clk 0:00:12]} 39. Rf1 {[%clk 0:00:43]}  Qe5 {[%clk 0:00:11]} 40. Rf3 {[%clk 0:00:42]}  h4 {[%clk 0:00:10]} 41. Rd3 {[%clk 0:00:37]}  hxg3+ {[%clk 0:00:08]} 42. Kg1 {[%clk 0:00:35]}  Qe1+ {[%clk 0:00:08]} 43. Bf1 {[%clk 0:00:36]}  Nh5 {[%clk 0:00:08]} 44. Re2 {[%clk 0:00:33]}  Qxe2 {[%clk 0:00:08]} 45. Bxe2 {[%clk 0:00:34]}  c2 {[%clk 0:00:09]} 46. Rd1 {[%clk 0:00:34]}  cxd1=Q+ {[%clk 0:00:08]} 47. Bxd1 {[%clk 0:00:35]}  Rc1 {[%clk 0:00:08]} 48. Kg2 {[%clk 0:00:36]}  Rxd1 {[%clk 0:00:09]} 49. Kf3 {[%clk 0:00:37]}  Rf1+ {[%clk 0:00:09]} 50. Kg2 {[%clk 0:00:38]}  Rf2+ {[%clk 0:00:09]} 51. Kg1 {[%clk 0:00:39]}  Ra2 {[%clk 0:00:09]} 52. h4 {[%clk 0:00:39]}  Kf6 {[%clk 0:00:09]} 53. Kf1 {[%clk 0:00:40]}  Kf5 {[%clk 0:00:10]} 54. Kg1 {[%clk 0:00:40]}  Kg4 {[%clk 0:00:11]} 55. Kf1 {[%clk 0:00:41]}  Kf3 {[%clk 0:00:11]} 56. Ke1 {[%clk 0:00:42]}  Re2+ {[%clk 0:00:10]} 57. Kd1 {[%clk 0:00:41]}  g2 {[%clk 0:00:10]} 58. Kc1 {[%clk 0:00:42]}  g1=Q# {[%clk 0:00:11]} 0-1


[Site "https://www.chess.com"]

[Event "Titled Tuesday Blitz February 15 Early 2022"]
[White "Galchenko, Matvey"]
[Black "Agibileg, Uurtsaikh"]
[WhiteFideId "24175480"]
[BlackFideId "4901606"]
[WhiteElo "2453"]
[BlackElo "2205"]
[Result "0-1"]
[Round "02"]
[TimeControl "180+1"]
[Date "2022.02.15"]
[WhiteClock "0:00:02"]
[BlackClock "0:01:31"]

1. c4 {[%clk 0:02:58]}  Nf6 {[%clk 0:02:59]} 2. g3 {[%clk 0:02:58]}  g6 {[%clk 0:02:59]} 3. Bg2 {[%clk 0:02:58]}  Bg7 {[%clk 0:03:00]} 4. Nc3 {[%clk 0:02:58]}  O-O {[%clk 0:03:00]} 5. e4 {[%clk 0:02:52]}  c5 {[%clk 0:02:57]} 6. Nge2 {[%clk 0:02:51]}  Nc6 {[%clk 0:02:55]} 7. d3 {[%clk 0:02:51]}  d6 {[%clk 0:02:55]} 8. O-O {[%clk 0:02:52]}  Rb8 {[%clk 0:02:46]} 9. Be3 {[%clk 0:02:45]}  Ng4 {[%clk 0:02:44]} 10. Bf4 {[%clk 0:02:44]}  Nge5 {[%clk 0:02:40]} 11. h3 {[%clk 0:02:38]}  Nd4 {[%clk 0:02:34]} 12. Rb1 {[%clk 0:02:05]}  Nef3+ {[%clk 0:02:28]} 13. Kh1 {[%clk 0:02:05]}  a6 {[%clk 0:02:22]} 14. b4 {[%clk 0:01:40]}  cxb4 {[%clk 0:02:17]} 15. Rxb4 {[%clk 0:01:41]}  Qa5 {[%clk 0:02:17]} 16. Qb1 {[%clk 0:01:30]}  Qh5 {[%clk 0:02:13]} 17. Ng1 {[%clk 0:00:33]}  Nxg1 {[%clk 0:02:11]} 18. Kxg1 {[%clk 0:00:34]}  Bxh3 {[%clk 0:02:08]} 19. Bxh3 {[%clk 0:00:23]}  Qxh3 {[%clk 0:02:09]} 20. Qd1 {[%clk 0:00:23]}  f5 {[%clk 0:01:47]} 21. Nd5 {[%clk 0:00:09]}  fxe4 {[%clk 0:01:37]} 22. dxe4 {[%clk 0:00:10]}  e5 {[%clk 0:01:31]} 23. Ne7+ {[%clk 0:00:02]}  Kh8 {[%clk 0:01:31]} 0-1


[Site "https://www.chess.com"]

[Event "Titled Tuesday Blitz February 15 Early 2022"]
[White "Galyas, Miklos"]
[Black "Mejia, Cherry Ann"]
[WhiteFideId "707244"]
[BlackFideId "5206880"]
[WhiteElo "2409"]
[BlackElo "2007"]
[Result "0-1"]
[Round "02"]
[TimeControl "180+1"]
[Date "2022.02.15"]
[WhiteClock "0:00:55"]
[BlackClock "0:00:11"]

1. c4 {[%clk 0:03:00]}  e5 {[%clk 0:03:00]} 2. Nc3 {[%clk 0:03:00]}  Nc6 {[%clk 0:03:00]} 3. g3 {[%clk 0:02:59]}  g6 {[%clk 0:03:00]} 4. Bg2 {[%clk 0:03:00]}  d6 {[%clk 0:02:59]} 5. e4 {[%clk 0:03:00]}  Be6 {[%clk 0:02:59]} 6. d3 {[%clk 0:02:59]}  Qd7 {[%clk 0:03:00]} 7. Nge2 {[%clk 0:02:59]}  h6 {[%clk 0:03:00]} 8. Nd5 {[%clk 0:02:58]}  Nd8 {[%clk 0:02:58]} 9. d4 {[%clk 0:02:56]}  c6 {[%clk 0:02:58]} 10. Ne3 {[%clk 0:02:56]}  Bh3 {[%clk 0:02:52]} 11. O-O {[%clk 0:02:49]}  h5 {[%clk 0:02:47]} 12. dxe5 {[%clk 0:02:43]}  dxe5 {[%clk 0:02:48]} 13. Qxd7+ {[%clk 0:02:42]}  Bxd7 {[%clk 0:02:49]} 14. b3 {[%clk 0:02:41]}  Bg7 {[%clk 0:02:46]} 15. Bb2 {[%clk 0:02:41]}  Ne6 {[%clk 0:02:46]} 16. f4 {[%clk 0:02:41]}  exf4 {[%clk 0:02:36]} 17. Bxg7 {[%clk 0:02:40]}  Nxg7 {[%clk 0:02:37]} 18. gxf4 {[%clk 0:02:40]}  Nf6 {[%clk 0:02:24]} 19. e5 {[%clk 0:02:40]}  Ng4 {[%clk 0:02:23]} 20. Nxg4 {[%clk 0:02:40]}  hxg4 {[%clk 0:02:17]} 21. Nc3 {[%clk 0:02:39]}  Nf5 {[%clk 0:02:13]} 22. Ne4 {[%clk 0:02:39]}  O-O-O {[%clk 0:02:13]} 23. Rad1 {[%clk 0:02:34]}  Rh4 {[%clk 0:01:50]} 24. Nf6 {[%clk 0:02:20]}  Ne3 {[%clk 0:01:38]} 25. Be4 {[%clk 0:01:57]}  Nxf1 {[%clk 0:01:28]} 26. Rxf1 {[%clk 0:01:56]}  Bf5 {[%clk 0:01:27]} 27. Rf2 {[%clk 0:01:48]}  Rd4 {[%clk 0:01:13]} 28. Re2 {[%clk 0:01:47]}  Rh3 {[%clk 0:00:52]} 29. Bg2 {[%clk 0:01:41]}  Rd1+ {[%clk 0:00:46]} 30. Kf2 {[%clk 0:01:38]}  Rxh2 {[%clk 0:00:42]} 31. Kg3 {[%clk 0:01:38]}  Rh8 {[%clk 0:00:33]} 32. b4 {[%clk 0:01:33]}  Rd3+ {[%clk 0:00:32]} 33. Kf2 {[%clk 0:01:33]}  g3+ {[%clk 0:00:30]} 34. Ke1 {[%clk 0:01:31]}  Rhd8 {[%clk 0:00:29]} 35. Rb2 {[%clk 0:01:13]}  Re3+ {[%clk 0:00:23]} 36. Re2 {[%clk 0:01:09]}  Rc3 {[%clk 0:00:20]} 37. Rb2 {[%clk 0:01:08]}  Rxc4 {[%clk 0:00:19]} 38. b5 {[%clk 0:01:08]}  cxb5 {[%clk 0:00:14]} 39. Rxb5 {[%clk 0:01:07]}  b6 {[%clk 0:00:14]} 40. Bd5 {[%clk 0:01:04]}  Rc5 {[%clk 0:00:13]} 41. Rxc5+ {[%clk 0:01:03]}  bxc5 {[%clk 0:00:13]} 42. Bxf7 {[%clk 0:01:03]}  g2 {[%clk 0:00:14]} 43. Kf2 {[%clk 0:01:02]}  Rd2+ {[%clk 0:00:13]} 44. Kg1 {[%clk 0:01:02]}  Bh3 {[%clk 0:00:13]} 45. Bb3 {[%clk 0:01:00]}  Rb2 {[%clk 0:00:11]} 46. Kh2 {[%clk 0:00:57]}  Rb1 {[%clk 0:00:10]} 47. Kxh3 {[%clk 0:00:56]}  g1=Q {[%clk 0:00:11]} 48. Be6+ {[%clk 0:00:56]}  Kb7 {[%clk 0:00:11]} 49. Bd5+ {[%clk 0:00:55]}  Kb6 {[%clk 0:00:11]} 0-1


[Site "https://www.chess.com"]

[Event "Titled Tuesday Blitz February 15 Early 2022"]
[White "Gant, Chris J"]
[Black "Terry, Renato"]
[WhiteFideId "403946"]
[BlackFideId "3803457"]
[WhiteElo "2190"]
[BlackElo "2577"]
[Result "0-1"]
[Round "02"]
[TimeControl "180+1"]
[Date "2022.02.15"]
[WhiteClock "0:02:20"]
[BlackClock "0:02:42"]

1. d4 {[%clk 0:03:00]}  e6 {[%clk 0:02:54]} 2. e4 {[%clk 0:02:59]}  d5 {[%clk 0:02:53]} 3. e5 {[%clk 0:02:59]}  c5 {[%clk 0:02:53]} 4. Qg4 {[%clk 0:02:59]}  Nc6 {[%clk 0:02:50]} 5. Nf3 {[%clk 0:02:58]}  cxd4 {[%clk 0:02:49]} 6. Bd3 {[%clk 0:02:58]}  h5 {[%clk 0:02:49]} 7. Qg3 {[%clk 0:02:57]}  h4 {[%clk 0:02:48]} 8. Qg4 {[%clk 0:02:50]}  Nh6 {[%clk 0:02:48]} 9. Bxh6 {[%clk 0:02:47]}  Rxh6 {[%clk 0:02:48]} 10. O-O {[%clk 0:02:47]}  f5 {[%clk 0:02:44]} 11. exf6 {[%clk 0:02:40]}  Qxf6 {[%clk 0:02:43]} 12. Re1 {[%clk 0:02:20]}  e5 {[%clk 0:02:42]} 0-1


[Site "https://www.chess.com"]